[Event "CCT Airthings Masters Play-In 2023"]
[Site "Online"]
[Date "2023.02.03"]
[Round "2"]
[White "PSvidler"]
[Black "K_A_S_T_O_R"]
[Result "0-1"]
[ECO "B56"]
[WhiteElo "2800"]
[BlackElo "2564"]
[Annotator "TA"]
[PlyCount "72"]
[EventDate "2023.02.03"]
[EventType "swiss"]
[EventCountry "NET"]
[SourceTitle "playchess.com"]
[Source "ChessBase"]
[SourceQuality "1"]
[TimeControl "600+2"]

{[%evp 11,72,13,18,22,23,10,21,-4,31,40,72,47,74,61,62,58,54,0,6,10,0,0,0,0,0,0,0,0,228,221,172,-335,-350,-348,-337,-338,-317,-340,-225,-226,-235,-220,-220,-241,-236,-228,-222,-218,-238,-225,-229,-249,-249,-247,-256,-496,-476,-560,-558,-1247,-1232,-1230,-1204]} 1. e4 {[%emt 0:00:05]} c5 {[%emt 0:00:05]} 2. Nf3 {[%emt 0:00:01]} d6 {[%emt 0:00:01]} 3. d4 {[%emt 0:00:03]} cxd4 {[%emt 0:00:02]} 4. Nxd4 {[%emt 0:00:00]} Nf6 {[%emt 0:00:01]} 5. Nc3 {[%emt 0:00:01]} a6 {[%emt 0:00:00]} 6. Nb3 {[%emt 0:00:14]} Nc6 {[%emt 0:00:08]} 7. Be3 {[%emt 0:00:06] B56: Classical Sicilian: Unusual Lines.} Ng4 {[%emt 0:00:24]} 8. Bd2 {[%emt 0:00:03]} Nf6 {[%emt 0:00:17] [#]} 9. Qe2 $146 {[%emt 0:00:23] The position is equal.} ({Predecessor:} 9. h4 g6 10. Bg5 Bg7 11. Qd2 h6 12. Bf4 Be6 13. O-O-O h5 14. Kb1 O-O 15. f3 {1-0 Grischuk,A (2752)-Kokarev,D (2636) RUS-ch 69th Novosibirsk 2016 (11)}) 9... e5 {[%emt 0:00:50]} 10. O-O-O {[%emt 0:00:28][%cal Be1c1,Bc1b1,Bb1a1][%mdl 32]} h6 {[%emt 0:00:13]} 11. Nd5 {[%emt 0:00:42]} Be6 {[%emt 0:00:21]} 12. Be3 {[%emt 0:00:41]} Bxd5 {[%emt 0:00:22]} (12... Nxe4 $2 13. Bb6 Qg5+ 14. Be3 $18) 13. exd5 {[%emt 0:00:02]} Nb4 {[%emt 0:00:35][%csl LRa2,LRd5]} 14. c4 {[%emt 0:00:04]} ({White should try} 14. g3 $14) 14... Nxa2+ {[%emt 0:00:16]} 15. Kb1 {[%emt 0:00:01]} Nb4 {[%emt 0:00:01] aiming for ...Qd7.} 16. f4 {[%emt 0:00:01] Threatens to win with Bd2.} Qd7 {[%emt 0:00:18]} 17. Bd2 {[%emt 0:01:55]} Qf5+ {[%emt 0:00:32]} 18. Ka1 {[%emt 0:00:02]} a5 {[%emt 0:00:19] White must now prevent ...Qc2.} 19. c5 {[%emt 0:00:46]} Qc2 $2 {[%emt 0:01:13]} (19... Nbxd5 20. Qb5+ Qd7 21. cxd6 Bxd6 22. fxe5 Bxe5 23. Re1 $16) (19... Nc2+ $11 {and Black has nothing to worry.} 20. Ka2 a4) 20. Qb5+ $18 {[%emt 0:00:25]} Nd7 {[%emt 0:00:09][%cal Bf6d7,Bd7c5,Bc5a4,Ba4c5,Bc5e6][%mdl 32]} 21. Rc1 {[%emt 0:00:11][%mdl 8192]} (21. Bc4 $18 Be7 22. cxd6 (22. Qxb7 $2 {too greedy.} Rb8 $19) 22... Bxd6 23. Rc1) 21... Qxb3 $19 {[%emt 0:00:08][%csl Gb4][%cal Rb3a2]} 22. Bc4 {[%emt 0:00:02]} Nc2+ {[%emt 0:00:22]} 23. Rxc2 {[%emt 0:00:01]} Qxc2 {[%emt 0:00:01]} 24. c6 {[%emt 0:00:09]} bxc6 {[%emt 0:01:09]} 25. dxc6 {[%emt 0:00:02]} Nc5 {[%emt 0:00:06]} 26. c7+ {[%emt 0:00:12]} Ke7 {[%emt 0:00:13]} 27. fxe5 {[%emt 0:00:11]} Qa4+ $1 {[%emt 0:00:31]} ({Much less strong is} 27... Qxd2 28. Qc6 Rc8 29. Bd5 $18) 28. Qxa4 {[%emt 0:00:01]} Nxa4 {[%emt 0:00:01]} 29. Bd5 {[%emt 0:03:05]} Rc8 {[%emt 0:00:15]} 30. Bxa5 {[%emt 0:00:13] [#]} Nc5 $1 {[%emt 0:00:26]} ({Weaker is} 30... dxe5 31. Rc1 $17) 31. b4 {[%emt 0:00:25] [#]} Ne6 {[%emt 0:00:01]} 32. Rc1 {[%emt 0:00:07]} dxe5 {[%emt 0:00:05]} 33. Bb7 $2 {[%emt 0:00:05] [#]} (33. b5 Nxc7 34. b6 Nxd5 {[%mdl 64] Discovered Attack} 35. Rxc8 Nxb6 36. Bxb6) 33... Kd7 $1 {[%emt 0:00:02] Black is clearly winning.} 34. b5 {[%emt 0:00:14] [#]} (34. Bc6+ Kd6) 34... Bc5 $1 {[%emt 0:00:26][%cal Oc5e3]} 35. b6 {[%emt 0:00:02] [#]} (35. Kb1 Rxc7) 35... Ra8 $1 {[%emt 0:00:15]} 36. Bxa8 {[%emt 0:00:04]} (36. Kb1 Rxa5) 36... Rxa8 {[%emt 0:00:02] Weighted Error Value: White=0.54/Black=0.21 (precise)} 0-1

[Event "CCT Airthings Masters Play-In 2023"]
[Site "Online"]
[Date "2023.02.03"]
[Round "2"]
[White "LevonAronian"]
[Black "xxysoul6"]
[Result "0-1"]
[ECO "C19"]
[WhiteElo "2790"]
[BlackElo "2562"]
[Annotator "TA"]
[PlyCount "50"]
[EventDate "2023.02.03"]
[EventType "swiss"]
[EventCountry "NET"]
[SourceTitle "playchess.com"]
[Source "ChessBase"]
[SourceQuality "1"]
[TimeControl "600+2"]

{[%evp 16,50,18,-16,0,0,0,13,41,-16,-9,-60,-66,-66,-62,-61,-50,-81,-70,-124,-109,-177,-208,-1287,-1279,-1288,-1276,-1254,-1278,-1279,-1280,-1271,-1014,-1011,-1000,-988,-988]} 1. e4 {[%emt 0:00:03]} e6 {[%emt 0:00:08]} 2. d4 {[%emt 0:00:02]} d5 {[%emt 0:00:01]} 3. Nc3 {[%emt 0:00:00]} Bb4 {[%emt 0:00:01]} 4. e5 {[%emt 0:00:01]} c5 {[%emt 0:00:01]} 5. a3 {[%emt 0:00:01]} Bxc3+ {[%emt 0:00:01]} 6. bxc3 {[%emt 0:00:01]} Nc6 {[%emt 0:00:01]} 7. a4 {[%emt 0:00:12]} Qa5 $1 {[%emt 0:00:28] The main line 7...Qa5 scores better than 7...Nge7.} 8. Bd2 {[%emt 0:00:05]} Nge7 {[%emt 0:00:02]} 9. Bb5 {[%emt 0:00:02]} Bd7 {[%emt 0:00:32] [#] C19: French: 3 Nc3 Bb4: Main line: 7 Nf3 and 7 a4.} 10. Qh5 $146 {[%emt 0:00:13]} ({Predecessor:} 10. Qg4 O-O 11. Nf3 c4 12. h4 Nxe5 13. Nxe5 Bxb5 14. O-O Be8 15. h5 Qa6 16. Rfe1 f6 17. Nf3 {1-0 Shuvalova,P (2492)-Ljukin,S (2362) Speed Chess Q2 blitz 2022 (4)}) 10... Qb6 {[%emt 0:00:53]} 11. dxc5 {[%emt 0:00:38]} Qc7 {[%emt 0:00:31] The position is equal.} 12. f4 {[%emt 0:00:20]} (12. Nf3 $14) 12... Na5 $11 {[%emt 0:00:10][%cal Od7b5] White should prevent ...Bxb5!} 13. Nf3 {[%emt 0:00:13]} (13. Be3 $11) 13... Bxb5 $15 {[%emt 0:00:26]} 14. axb5 {[%emt 0:00:07]} Nc4 $1 $36 {[%emt 0:00:01][%mdl 2048] Prevents Be3. Black has the initiative.} 15. Nd4 $1 {[%emt 0:01:27]} ({Much worse is} 15. Ng5 g6 16. Qe2 Qxc5 $17) 15... g6 {[%emt 0:00:04]} ({Don't play} 15... Qxc5 16. Nxe6 Qb6 17. Nxg7+ Kf8 18. f5 Nxd2 19. Kxd2 Qf2+ 20. Kd1 Qxg2 21. Re1 Qxg7 22. f6 $16) 16. Qh4 {[%emt 0:00:01]} Qxc5 {[%emt 0:00:10]} 17. g4 {[%emt 0:00:26] Dodges Nf5} ({White should play} 17. Qf2 $15) 17... Rc8 {[%emt 0:00:18] Threatens to win with ...Nxd2.} 18. Bc1 {[%emt 0:00:25]} (18. Qf2 $17 {was called for.}) 18... Nxe5 $1 $19 {[%emt 0:00:26][%mdl 64] [#] Discovered Attack. A dynamic duo of knights.} 19. Ba3 $2 {[%emt 0:01:04]} (19. Qh3 Nxg4 20. Ba3) 19... Qxc3+ {[%emt 0:01:17] Black is clearly winning.} 20. Ke2 {[%emt 0:00:04]} Qc4+ {[%emt 0:00:21]} (20... Qxd4 $2 21. Qxe7#) ({Not} 20... f6 21. Qxf6 $15) 21. Ke1 {[%emt 0:00:03]} g5 {[%emt 0:00:43]} (21... Qxd4 $2 22. Qxe7#) 22. Qxg5 {[%emt 0:00:10]} N7g6 {[%emt 0:00:11]} (22... Qxd4 $2 23. Qxe7#) 23. Rd1 {[%emt 0:00:20]} Qc3+ {[%emt 0:00:35]} 24. Ke2 {[%emt 0:00:01]} h6 {[%emt 0:00:14][%mdl 64] [#] Deflection} 25. Qf6 {[%emt 0:00:24]} Nxg4 {[%emt 0:00:03] An entertaining game by xxysoul6.   Weighted Error Value: White=0.51/Black=0.32} 0-1

[Event "CCT Airthings Masters Play-In 2023"]
[Site "Online"]
[Date "2023.02.03"]
[Round "2"]
[White "Firouzja, Alireza"]
[Black "GukeshDommaraju"]
[Result "1/2-1/2"]
[ECO "B30"]
[WhiteElo "2785"]
[BlackElo "2560"]
[Annotator "TA"]
[PlyCount "150"]
[EventDate "2023.02.03"]
[EventType "swiss"]
[EventCountry "NET"]
[SourceTitle "playchess.com"]
[Source "ChessBase"]
[SourceQuality "1"]
[TimeControl "600+2"]

{[%evp 16,150,27,25,33,21,23,22,22,26,15,13,14,14,14,11,0,0,7,0,0,0,0,0,0,0,0,-68,-89,-81,-81,-81,-68,-320,-320,-298,-135,-167,-81,-172,-159,-169,-170,-161,-159,-159,-137,-126,-137,-158,-149,-134,0,-322,-275,-210,0,-132,-118,-127,-128,-132,-71,-112,-112,-117,-117,-116,-116,-222,-145,-145,-145,-233,-252,-320,-104,-192,-121,-187,-187,-397,-187,-508,-95,-104,-47,-45,-12,-12,-12,-12,-11,-11,0,0,0,0,0,0,0,0,0,0,0,0,0,0,0,0,0,0,5433,3483,29970,0,0,0,0,0,0,0,0,0,0,0,0,0,0,0,0,0,0,0,0,0,0]} 1. e4 {[%emt 0:00:04]} c5 {[%emt 0:00:07]} 2. Nf3 {[%emt 0:00:01]} Nc6 {[%emt 0:00:01]} 3. Bb5 {[%emt 0:00:03]} e6 {[%emt 0:00:02]} 4. O-O {[%emt 0:00:05]} Nge7 {[%emt 0:00:04]} 5. Re1 {[%emt 0:00:01]} a6 {[%emt 0:00:22]} 6. Bf1 {[%emt 0:00:01]} d5 {[%emt 0:00:01]} 7. exd5 {[%emt 0:00:03]} Nxd5 {[%emt 0:00:00]} 8. d4 {[%emt 0:00:01]} Nf6 {[%emt 0:00:01]} 9. Be3 {[%emt 0:00:01]} Be7 {[%emt 0:00:05] B30: Sicilian: 2...Nc6 3 Bb5, lines without ...g6.} 10. c4 {[%emt 0:00:09]} O-O {[%emt 0:00:02]} 11. Nc3 {[%emt 0:00:02]} cxd4 {[%emt 0:00:14]} 12. Nxd4 {[%emt 0:00:01]} Ne5 $1 {[%emt 0:00:09][%mdl 4] is now more promising than 12...Bd7.} 13. h3 {[%emt 0:00:09] Inhibits Neg4.} Bd7 {[%emt 0:00:04]} 14. Rc1 {[%emt 0:00:14]} Rc8 {[%emt 0:00:08]} 15. Qb3 {[%emt 0:00:02][%cal Od4f5]} Qc7 {[%emt 0:00:01]} 16. Na4 {[%emt 0:00:09]} Rcd8 {[%emt 0:00:08]} 17. Qb6 {[%emt 0:00:44]} Qc8 {[%emt 0:00:02]} 18. Qa5 {[%emt 0:00:07]} Qb8 {[%emt 0:00:04] [#]} 19. Nb6 $146 {[%emt 0:00:14]} ({Predecessor:} 19. b4 Be8 20. b5 axb5 21. Nxb5 Nd3 22. Bxd3 Rxd3 23. Rcd1 Rxd1 24. Rxd1 Bc6 25. Na7 {½-½ Giri,A (2764)-Praggnanandhaa,R (2676) Julius Baer GenCup Prelim rapid 2022 (14)}) 19... Bc6 {[%emt 0:01:20]} 20. Rcd1 {[%emt 0:00:26]} Be4 {[%emt 0:01:28]} 21. Bg5 {[%emt 0:00:31] [#]} (21. b4 $11) 21... Rxd4 $1 $15 {[%emt 0:00:10][%mdl 64] Remove Defender, Decoy} 22. Rxd4 {[%emt 0:04:57]} Nc6 $1 $40 {[%emt 0:00:01][%csl LRa5,LRd4][%mdl 128] Black is out for blood.} 23. Qd2 {[%emt 0:00:06] Strongly threatening Bxf6.} Bb4 {[%emt 0:00:46]} 24. Bxf6 $2 {[%emt 0:01:07][%mdl 8192]} Bxd2 $19 {[%emt 0:00:06]} 25. Rxd2 {[%emt 0:00:01]} gxf6 {[%emt 0:01:01]} (25... Bxg2 $19 {has better winning chances.} 26. Bxg2 gxf6) 26. Rxe4 $17 {[%emt 0:00:02]} Ne5 {[%emt 0:00:13]} (26... f5 $19 {and Black stays clearly on top.} 27. Nd7 Qc8) 27. c5 {[%emt 0:00:12]} (27. Nd7 $17 {might work better.} Nxd7 28. Rg4+ Kh8 29. Rxd7) 27... Rd8 $19 {[%emt 0:00:08]} 28. Red4 {[%emt 0:00:04]} Rxd4 {[%emt 0:00:02]} 29. Rxd4 {[%emt 0:00:00]} Qc7 {[%emt 0:00:07]} 30. b4 {[%emt 0:00:02]} Nc6 {[%emt 0:00:18] Wards off a3} 31. Rd7 {[%emt 0:00:09]} Qf4 {[%emt 0:00:02]} 32. a3 {[%emt 0:00:06]} Nd4 $1 {[%emt 0:01:32]} 33. Nc4 {[%emt 0:00:02] Against Qd2} e5 {[%emt 0:01:09]} (33... h5 $1 $17 {...h4 would be deadly.} 34. g3 Nf3+ 35. Kg2 Ne1+ 36. Kg1 Qf3) 34. Rxb7 $2 {[%emt 0:00:23][%mdl 8192]} (34. Ne3 $1 $11 {and White is okay.}) 34... Qc1 {[%emt 0:00:06] ( -> ...Ne2+)} 35. Ne3 {[%emt 0:00:01]} Qe1 $2 {[%emt 0:00:06]} ({Less strong is} 35... Qxa3 36. Bc4 $14) (35... f5 $1 $19 {[%cal Rf5f4] Threatens to win with ...f4.} 36. g4 f4) 36. c6 {[%emt 0:00:23]} Nxc6 $17 {[%emt 0:00:05]} 37. Nf5 {[%emt 0:00:01]} h5 $1 {[%emt 0:00:09]} 38. Rd7 {[%emt 0:00:14]} Qb1 {[%emt 0:00:10]} (38... e4 $142 $1 {...Ne5 is the strong threat.} 39. Rc7 Ne5) 39. Rd6 {[%emt 0:00:07]} Nxb4 {[%emt 0:00:19]} 40. axb4 {[%emt 0:00:09]} Qxf5 {[%emt 0:00:02]} 41. Rxa6 {[%emt 0:00:00][%mdl 4096] Endgame KQ-KRB} Kg7 {[%emt 0:00:08]} 42. Ra1 {[%emt 0:00:04] Dodges Qb1} (42. b5 $17) 42... Qc2 {[%emt 0:00:06]} 43. b5 {[%emt 0:00:02]} Qb2 {[%emt 0:00:01]} 44. Re1 {[%emt 0:00:01] [#]} (44. Rd1 $17 {is a better defense.}) 44... f5 $1 $19 {[%emt 0:00:02]} 45. g3 {[%emt 0:00:02]} Kf6 $2 {[%emt 0:00:02]} (45... h4 $19 {is more deadly.} 46. Re2 Qxb5) 46. Re3 {[%emt 0:00:01]} (46. h4 $17 {was worth a try.}) 46... e4 {[%emt 0:00:07]} ({Black should play} 46... h4 $19 47. gxh4 e4) 47. Re2 {[%emt 0:00:02]} (47. h4 $17) 47... Qb1 {[%emt 0:00:08]} ({Stronger than} 47... Qxb5 48. Rxe4 Qd5 49. Rf4 $11) 48. Re3 $2 {[%emt 0:00:03]} (48. h4) 48... Ke5 {[%emt 0:00:01]} (48... h4 $142 49. gxh4 f4) 49. Kg2 $2 {[%emt 0:00:01]} (49. h4) 49... Kd4 $2 {[%emt 0:00:02]} (49... h4 $19 50. gxh4 f4) 50. h4 $17 {[%emt 0:00:04]} Qb4 {[%emt 0:00:04]} (50... Ke5 $17 51. Be2 Kf6) 51. Be2 $15 {[%emt 0:00:01]} Ke5 {[%emt 0:00:04] White should prevent ...f4.} 52. Bxh5 {[%emt 0:00:06]} Qxb5 {[%emt 0:00:01]} 53. Bxf7 {[%emt 0:00:00]} f4 {[%emt 0:00:01]} 54. gxf4+ {[%emt 0:00:02]} Kxf4 {[%emt 0:00:00]} 55. Bg6 {[%emt 0:00:01][%csl Gg6][%cal Re3e4]} Ke5 {[%emt 0:00:04]} 56. Bxe4 {[%emt 0:00:01] White wants to mate with Bd3+.} Kf6 {[%emt 0:00:01]} 57. Bf3 {[%emt 0:00:00]} Qc4 {[%emt 0:00:03]} 58. Re4 {[%emt 0:00:01]} Qd3 {[%emt 0:00:02]} 59. Rg4 {[%emt 0:00:02]} Qd2 {[%emt 0:00:03]} 60. h5 {[%emt 0:00:01]} Qc1 {[%emt 0:00:04]} 61. Rg6+ {[%emt 0:00:01]} Kf5 {[%emt 0:00:01]} 62. Bg4+ {[%emt 0:00:02]} Kf4 {[%emt 0:00:01]} 63. Bf3 {[%emt 0:00:06] aiming for h6.} Qc3 $2 {[%emt 0:00:02][%mdl 8192] [#] Repels h6} (63... Kf5 $11) 64. Rg4+ $1 $18 {[%emt 0:00:03]} Kf5 {[%emt 0:00:00]} 65. Rg3 $2 {[%emt 0:00:03]} (65. h6 {mates} Qf6 66. h7 Qh6 67. Be2 Ke6 68. Bd3 Qh5 69. Rg8 Qd5+ 70. Kg1 Qxd3 71. h8=Q (71. h8=R Qb1+ 72. Kh2 Qf5 $16) 71... Qd1+ 72. Kg2 Qd5+ 73. f3) 65... Qd4 {[%emt 0:00:03] The position is equal.} 66. h6 {[%emt 0:00:01] Threatening mate with h7.} Qh4 {[%emt 0:00:02]} 67. Rh3 {[%emt 0:00:03]} Qg5+ {[%emt 0:00:01]} 68. Kh1 {[%emt 0:00:01]} Qc1+ {[%emt 0:00:01]} 69. Kh2 {[%emt 0:00:01]} Qf4+ {[%emt 0:00:01]} 70. Kg2 {[%emt 0:00:00]} Qg5+ {[%emt 0:00:01]} 71. Kf1 {[%emt 0:00:01] Rh5 would kill now.} Qc1+ {[%emt 0:00:01]} 72. Ke2 {[%emt 0:00:01]} Qc2+ {[%emt 0:00:03]} 73. Ke1 {[%emt 0:00:01]} Qc3+ {[%emt 0:00:05]} 74. Kf1 {[%emt 0:00:01][%cal Of3e4] White threatens Be4+! and mate.} Qc1+ {[%emt 0:00:01]} 75. Kg2 {[%emt 0:00:01] Intending Rh5+ and mate.} Qg5+ {[%emt 0:00:01] Quite a comeback for White.   Weighted Error Value: White=0.48/Black=0.44} 1/2-1/2

[Event "CCT Airthings Masters Play-In 2023"]
[Site "Online"]
[Date "2023.02.03"]
[Round "2"]
[White "Grischuk, Alexander"]
[Black "SergeiAza"]
[Result "1-0"]
[ECO "D03"]
[WhiteElo "2745"]
[BlackElo "2521"]
[Annotator "TA"]
[PlyCount "73"]
[EventDate "2023.02.03"]
[EventType "swiss"]
[EventCountry "NET"]
[SourceTitle "playchess.com"]
[Source "ChessBase"]
[SourceQuality "1"]
[TimeControl "600+2"]

{[%evp 12,73,10,14,42,0,17,18,16,11,13,13,12,7,13,9,9,0,62,50,71,35,107,92,125,108,112,113,112,102,110,99,191,214,250,247,241,242,243,189,179,187,193,188,180,165,208,208,263,277,285,35,34,22,27,12,25,28,480,462,599,597,593,558]} 1. d4 {[%emt 0:00:08]} Nf6 {[%emt 0:00:04]} 2. Nf3 {[%emt 0:00:02]} e6 {[%emt 0:00:02]} 3. Bg5 {[%emt 0:00:12]} d5 {[%emt 0:00:05]} 4. Nbd2 {[%emt 0:00:02]} c5 {[%emt 0:00:11]} 5. e3 {[%emt 0:00:16]} Nc6 {[%emt 0:00:06]} 6. c3 {[%emt 0:00:11]} Be7 {[%emt 0:00:23]} 7. Bd3 {[%emt 0:00:04]} h6 {[%emt 0:00:07] D03: 1 d4 d5 2 Nf3 Nf6 3 Bg5, including Torre Attack with early ...d5.} 8. Bf4 {[%emt 0:00:08]} b6 {[%emt 0:00:24]} 9. Ne5 {[%emt 0:01:02]} Nxe5 {[%emt 0:00:09] The position is equal.} 10. Bxe5 {[%emt 0:00:02]} O-O {[%emt 0:00:18]} 11. O-O {[%emt 0:01:11]} Bb7 {[%emt 0:00:08]} 12. Qf3 {[%emt 0:00:53] [#]} Bd6 $146 {[%emt 0:00:20]} ({Predecessor:} 12... Nd7 13. Qg3 Nxe5 14. dxe5 Bh4 15. Qg4 Qg5 16. Qxg5 Bxg5 17. f4 Be7 18. Rfd1 Rfd8 19. c4 {1-0 Skliarov,O (2137)-Smykalo,S (1882) Eljanov Memorial 6th blitz 2020 (4)}) 13. Qg3 {[%emt 0:00:19]} Bxe5 {[%emt 0:00:10]} 14. dxe5 {[%emt 0:00:00]} Nd7 {[%emt 0:00:01]} (14... Ne4 $11 15. Bxe4 dxe4) 15. f4 $1 $14 {[%emt 0:00:15] White has more active pieces. The black rooks are badly placed.} f5 {[%emt 0:00:13]} 16. Qh3 {[%emt 0:00:19]} c4 {[%emt 0:01:50]} (16... Qe8 $14) 17. Bc2 $16 {[%emt 0:00:02]} Nc5 {[%emt 0:00:01]} 18. Nf3 {[%emt 0:00:09]} Qe7 {[%emt 0:00:47]} 19. Nd4 {[%emt 0:00:05]} Kh7 {[%emt 0:01:10]} 20. g4 {[%emt 0:00:20][%cal Rg4f5]} g6 {[%emt 0:00:01]} 21. Rf2 {[%emt 0:00:19]} Nd3 {[%emt 0:00:13]} (21... Rg8 $16) 22. Rg2 {[%emt 0:00:33]} Rf7 {[%emt 0:00:55]} 23. Bxd3 {[%emt 0:00:27]} cxd3 {[%emt 0:00:01]} 24. Rd1 {[%emt 0:00:01]} Ba6 {[%emt 0:00:09]} 25. Qg3 {[%emt 0:00:11] aiming for gxf5.} Rg8 {[%emt 0:00:26]} 26. gxf5 {[%emt 0:00:02] Black is weak on the dark squares} exf5 {[%emt 0:00:01]} 27. h4 {[%emt 0:00:26]} Rfg7 {[%emt 0:00:10]} 28. Qh3 {[%emt 0:00:08]} Bc4 {[%emt 0:00:26] [#]} 29. Kh2 $1 {[%emt 0:00:16]} a5 {[%emt 0:00:13]} 30. h5 {[%emt 0:01:02]} gxh5 {[%emt 0:00:11]} 31. Qxf5+ $2 {[%emt 0:00:03]} (31. Nxf5 $2 {too greedy.} Rxg2+ 32. Kh1 Qe6 $19) (31. Rxg7+ $18 Qxg7 32. Nxf5 (32. Qxf5+ Kh8 $16)) 31... Kh8 $14 {[%emt 0:00:02]} 32. Rxg7 {[%emt 0:00:04]} Qxg7 {[%emt 0:00:04][%csl Gg8][%cal Rg7g2]} 33. Qh3 {[%emt 0:00:47] Repels Qg2+. Nf5 is the strong threat. The board is on fire.} (33. Qxh5 $2 Qg2#) 33... d2 $1 {[%emt 0:00:42]} 34. Nf5 $36 {[%emt 0:00:16][%cal Bd4f5,Bf5e7,Be7f5][%mdl 2080] White has the initiative.} Qg6 {[%emt 0:00:54][%mdl 8192]} (34... Qg1+ $1 $11 35. Rxg1 Rxg1 {[%mdl 64] Remove Defender} 36. Kxg1 d1=Q+ 37. Kh2 Bf1) 35. Ne7 $18 {[%emt 0:00:06][%mdl 64] [#] Deflection, Double Attack. White is clearly winning.} (35. Rxd2 $2 Qg1#) 35... Qd3 {[%emt 0:00:06] ( -> ...Qe2+)} 36. Qxh5 {[%emt 0:00:18]} Rg7 {[%emt 0:00:01]} 37. Nf5 {[%emt 0:00:08] Artfully played by Grischuk.   Weighted Error Value: White=0.16 (very precise) /Black=0.40} (37. Qxh6+ $2 {perishes.} Rh7 $19) 1-0

[Event "CCT Airthings Masters Play-In 2023"]
[Site "Online"]
[Date "2023.02.03"]
[Round "2"]
[White "VladimirKramnik"]
[Black "Arseniy_Nesterov"]
[Result "1-0"]
[ECO "D34"]
[WhiteElo "2730"]
[BlackElo "2558"]
[Annotator "TA"]
[PlyCount "57"]
[EventDate "2023.02.03"]
[EventType "swiss"]
[EventCountry "NET"]
[SourceTitle "playchess.com"]
[Source "ChessBase"]
[SourceQuality "1"]
[TimeControl "600+2"]

{[%evp 16,57,33,33,41,44,46,45,45,28,48,44,79,78,78,71,69,77,114,109,106,105,110,60,96,73,74,81,100,108,294,310,399,400,400,385,822,822,810,800,880,816,928,561]} 1. Nf3 {[%emt 0:00:09]} d5 {[%emt 0:00:04]} 2. g3 {[%emt 0:00:01]} Nf6 {[%emt 0:00:01]} 3. Bg2 {[%emt 0:00:01]} e6 {[%emt 0:00:05]} 4. O-O {[%emt 0:00:03]} Be7 {[%emt 0:00:01]} 5. c4 {[%emt 0:00:01]} O-O {[%emt 0:00:03]} 6. cxd5 {[%emt 0:00:03]} exd5 {[%emt 0:00:01]} 7. b3 {[%emt 0:00:01]} c5 {[%emt 0:01:46]} 8. d4 {[%emt 0:00:02]} Nc6 {[%emt 0:00:04]} 9. Nc3 {[%emt 0:00:03]} a6 {[%emt 0:01:40] D34: Tarrasch Defence: 6 g3 Nf6 7 Bg2 Be7.} 10. Bb2 {[%emt 0:00:04]} Bg4 {[%emt 0:00:12]} 11. dxc5 {[%emt 0:00:03]} Bxc5 {[%emt 0:00:02] White is slightly better.} 12. Rc1 {[%emt 0:00:03][%cal Oc3d5]} Ba7 {[%emt 0:00:03]} 13. h3 {[%emt 0:00:09]} Be6 {[%emt 0:00:02]} 14. e3 {[%emt 0:00:14]} Rc8 {[%emt 0:00:12]} 15. Ne2 {[%emt 0:00:13][%cal Bc3e2,Be2f4,Bf4h5][%mdl 32]} Ne4 {[%emt 0:00:02] [#]} 16. Nf4 $146 {[%emt 0:00:11]} ({Predecessor:} 16. Ned4 Re8 17. Nxe6 fxe6 18. Ne5 Nxg3 19. Nxc6 bxc6 20. Qg4 Nf5 21. e4 dxe4 22. Bxe4 {½-½ Shapovalovi,V (1531)-Zaimov,B (1439) Ankara Baskent Univ op-B 3rd 2018 (5)}) 16... Qd6 {[%emt 0:01:41]} 17. Qe2 {[%emt 0:00:08]} Rfd8 {[%emt 0:00:04]} 18. Rfd1 {[%emt 0:00:02]} Qe7 {[%emt 0:00:13]} 19. Kh2 {[%emt 0:00:06]} ({White should try} 19. Nd2 $16) 19... h6 {[%emt 0:00:04]} 20. Nh5 {[%emt 0:00:08]} g6 {[%emt 0:00:37]} 21. Nf4 {[%emt 0:00:02]} g5 {[%emt 0:00:24]} 22. Nh5 {[%emt 0:00:05] aiming for Nd2.} ({Don't do} 22. Nxe6 Qxe6 23. Ba1 Bb6 $14) 22... Bf5 $2 {[%emt 0:00:35] Black cannot hold the game after this.} (22... f5 $16) 23. Nd2 $1 $18 {[%emt 0:00:06]} Ne5 {[%emt 0:00:19]} 24. Rxc8 {[%emt 0:00:44]} Rxc8 {[%emt 0:00:03]} 25. Nxe4 {[%emt 0:00:02]} dxe4 {[%emt 0:00:17] [#]} (25... Bxe4 26. Bxe4 dxe4 27. Bxe5 Qxe5) 26. Bxe5 $1 {[%emt 0:00:11] White is clearly winning.} Qxe5 {[%emt 0:00:01] [#]} 27. Rd5 $3 {[%emt 0:00:01][%mdl 576] Decoy} Qe6 {[%emt 0:00:01] [#]} (27... Bb8 28. Rxe5) 28. Qb2 $1 {[%emt 0:00:05][%csl Gh5][%cal Rb2g7]} f6 {[%emt 0:00:14]} (28... Qg6 29. Nf6+) 29. Qxf6 {[%emt 0:00:15] Beautiful play by VladimirKramnik!   Weighted Error Value: White=0.07 (flawless) /Black=0.35} 1-0